fUST/lending_fUST_20250906
["ID","MTS","AMOUNT","RATE_DAILY","PERIOD"]
[383918247,1757172660084,-901.51,0.00013972,2]
[383918248,1757172660093,-289.3796986,0.00013972,2]
[383918251,1757172660103,-480.0,0.00013972,2]
[383918252,1757172660113,-480.0,0.00013972,2]
[383918254,1757172660122,-480.0,0.00013972,2]
[383918256,1757172660132,-480.0,0.00013972,2]
[383918259,1757172660141,-482.42310705,0.00013972,2]
[383918261,1757172660151,-558.72,0.00013972,2]
[383918263,1757172660161,-480.91,0.00013972,2]
[383918265,1757172660171,-480.0,0.00013972,2]
[383918267,1757172660180,-480.0,0.00013972,2]
[383918269,1757172660190,-480.0,0.00013972,2]
[383918271,1757172660200,-480.0,0.00013972,2]
[383918273,1757172660210,-480.0,0.00013972,2]
[383918275,1757172660219,-481.31611606,0.00013972,2]
[383918277,1757172660228,-480.0,0.00013972,2]
[383918279,1757172660237,-480.0,0.00013972,2]
[383918281,1757172660248,-480.0,0.00013972,2]
[383918283,1757172660258,-480.0,0.00013972,2]
[383918285,1757172660268,-480.0,0.00013972,2]
[383918286,1757172660277,-401.96525251,0.00013972,2]
[383918288,1757172660287,-480.0,0.00013972,2]
[383918290,1757172660297,-1387.41,0.00013972,2]
[383918292,1757172660306,-480.0,0.00013972,2]
[383918294,1757172660316,-480.0,0.00013972,2]
[383918297,1757172660326,-481.6786968,0.00013972,2]
[383918298,1757172660334,-480.0,0.00013972,2]
[383918300,1757172660344,-560.76,0.00013972,2]
[383918302,1757172660353,-483.88805826,0.00013972,2]
[383918304,1757172660362,-480.0,0.00013972,2]
[383918306,1757172660372,-429.26510907,0.00013972,2]
[383918308,1757172660381,-480.0,0.00013972,2]
[383918310,1757172660391,-480.0,0.00013972,2]
[383918312,1757172660402,-480.0,0.00013972,2]
[383918314,1757172660411,-480.0,0.00013972,2]
[383918316,1757172660420,-480.0,0.00013972,2]
[383918318,1757172660429,-497.16,0.00013972,2]
[383918320,1757172660439,-480.0,0.00013972,2]
[383918322,1757172660448,-480.0,0.00013972,2]
[383918324,1757172660457,-480.0,0.00013972,2]
[383918326,1757172660466,-480.0,0.00013972,2]
[383918328,1757172660476,-480.0,0.00013972,2]
[383918330,1757172660485,-581.75,0.00013972,2]
[383918332,1757172660495,-857.76,0.00013972,2]
[383918334,1757172660504,-480.0,0.00013972,2]
[383918336,1757172660513,-480.0,0.00013972,2]
[383918338,1757172660523,-480.0,0.00013972,2]
[383918340,1757172660532,-480.0,0.00013972,2]
[383918342,1757172660542,-876.32,0.00013972,2]
[383918344,1757172660551,-480.0,0.00013972,2]
[383918346,1757172660560,-492.63788114,0.00013972,2]
[383918348,1757172660569,-482.43330766,0.00013972,2]
[383918349,1757172660579,-480.0,0.00013972,2]
[383918351,1757172660588,-529.48,0.00013972,2]
[383918353,1757172660597,-480.0,0.00013972,2]
[383918355,1757172660606,-480.0,0.00013972,2]
[383918357,1757172660616,-480.0,0.00013972,2]
[383918359,1757172660625,-480.0,0.00013972,2]
[383918361,1757172660635,-480.0,0.00013972,2]
[383918363,1757172660644,-480.0,0.00013972,2]
[383918365,1757172660653,-480.0,0.00013972,2]
[383918367,1757172660662,-480.0,0.00013972,2]
[383918369,1757172660672,-911.94,0.00013972,2]
[383918371,1757172660681,-281.66542439,0.00013972,2]
[383918373,1757172660691,-480.0,0.00013972,2]
[383918375,1757172660700,-3208.28,0.00013972,2]
[383918377,1757172660709,-480.0,0.00013972,2]
[383918379,1757172660718,-480.0,0.00013972,2]
[383918381,1757172660727,-598.35920871,0.00013972,2]
[383918383,1757172660738,-480.0,0.00013972,2]
[383918385,1757172660747,-480.0,0.00013972,2]
[383918387,1757172660756,-2524.48,0.00013972,2]
[383918389,1757172660766,-480.0,0.00013972,2]
[383918391,1757172660775,-480.0,0.00013972,2]
[383918393,1757172660784,-480.0,0.00013972,2]
[383918394,1757172660793,-1016.99,0.00013972,2]
[383918396,1757172660802,-480.0,0.00013972,2]
[383918398,1757172660811,-480.0,0.00013972,2]
[383918400,1757172660820,-480.0,0.00013972,2]
[383918402,1757172660830,-480.0,0.00013972,2]
[383918404,1757172660839,-480.0,0.00013972,2]
[383918406,1757172660848,-169.35295248,0.00013972,2]
[383918408,1757172660857,-485.46532245,0.00013972,2]
[383918410,1757172660867,-480.0,0.00013972,2]
[383918412,1757172660875,-480.0,0.00013972,2]
[383918414,1757172660883,-480.0,0.00013972,2]
[383918416,1757172660893,-480.0,0.00013972,2]
[383918418,1757172660902,-480.0,0.00013972,2]
[383918420,1757172660913,-1063.25,0.00013972,2]
[383918422,1757172660922,-480.0,0.00013972,2]
[383918424,1757172660932,-480.0,0.00013972,2]
[383918426,1757172660942,-480.0,0.00013972,2]
[383918428,1757172660951,-480.0,0.00013972,2]
[383918430,1757172660960,-480.0,0.00013972,2]
[383918432,1757172660970,-480.0,0.00013972,2]
[383918434,1757172660979,-937.93,0.00013972,2]
[383918436,1757172660988,-480.0,0.00013972,2]
[383918438,1757172660997,-480.0,0.00013972,2]
[383918439,1757172661007,-295.96936513,0.00013972,2]
[383918441,1757172661017,-480.0,0.00013972,2]
[383918443,1757172661027,-563.59205488,0.00013972,2]
[383918445,1757172661044,-480.0,0.00013972,2]
[383918447,1757172661053,-480.0,0.00013972,2]
[383918449,1757172661062,-480.0,0.00013972,2]
[383918451,1757172661071,-480.0,0.00013972,2]
[383918453,1757172661081,-480.0,0.00013972,2]
[383918455,1757172661090,-480.0,0.00013972,2]
[383918457,1757172661100,-618.9,0.00013972,2]
[383918459,1757172661109,-487.55855036,0.00013972,2]
[383918461,1757172661118,-499.95,0.00013972,2]
[383918463,1757172661128,-480.0,0.00013972,2]
[383918465,1757172661137,-1093.44,0.00013972,2]
[383918467,1757172661147,-480.0,0.00013972,2]
[383918469,1757172661156,-480.0,0.00013972,2]
[383918471,1757172661166,-480.0,0.00013972,2]
[383918473,1757172661175,-773.25,0.00013972,2]
[383918488,1757172661311,-480.0,0.00013972,2]
[383918490,1757172661321,-480.0,0.00013972,2]
[383918492,1757172661331,-480.0,0.00013972,2]
[383918494,1757172661341,-192.92341952,0.00013972,2]
[383918495,1757172661350,-481.7003316,0.00013972,2]
[383918497,1757172661360,-480.0,0.00013972,2]
[383918499,1757172661370,-480.0,0.00013972,2]
[383918501,1757172661379,-2237.86,0.00013972,2]
[383918503,1757172661388,-480.0,0.00013972,2]
[383918505,1757172661397,-932.92,0.00013972,2]
[383918507,1757172661406,-480.0,0.00013972,2]
[383918509,1757172661416,-480.0,0.00013972,2]
[383918511,1757172661425,-480.0,0.00013972,2]
[383918513,1757172661434,-6604.54,0.00013972,2]
[383918515,1757172661443,-519.14,0.00013972,2]
[383918517,1757172661452,-480.0,0.00013972,2]
[383918519,1757172661461,-480.0,0.00013972,2]
[383918521,1757172661471,-480.0,0.00013972,2]
[383918523,1757172661480,-1101.14,0.00013972,2]
[383918525,1757172661489,-7071.82,0.00013972,2]
[383918527,1757172661498,-480.0,0.00013972,2]
[383918528,1757172661508,-480.0,0.00013972,2]
[383918530,1757172661517,-480.0,0.00013972,2]
[383918532,1757172661526,-480.0,0.00013972,2]
[383918534,1757172661535,-748.22,0.00013972,2]
[383918536,1757172661544,-2641.77,0.00013972,2]
[383918538,1757172661554,-1084.86,0.00013972,2]
[383918540,1757172661563,-480.0,0.00013972,2]
[383918542,1757172661574,-480.0,0.00013972,2]
[383918544,1757172661583,-480.0,0.00013972,2]
[383918546,1757172661592,-564.62552822,0.00013972,2]
[383918548,1757172661601,-480.0,0.00013972,2]
[383918550,1757172661611,-165.20957427,0.00013972,2]
[383918552,1757172661620,-520.84553289,0.00013972,2]
[383918554,1757172661629,-480.0,0.00013972,2]
[383918556,1757172661638,-482.47234193,0.00013972,2]
[383918558,1757172661648,-480.0,0.00013972,2]
[383918560,1757172661657,-480.0,0.00013972,2]
[383918562,1757172661666,-480.0,0.00013972,2]
[383918564,1757172661676,-480.0,0.00013972,2]
[383918566,1757172661685,-1955.32,0.00013972,2]
[383918568,1757172661694,-484.37821763,0.00013972,2]
[383918570,1757172661703,-480.0,0.00013972,2]
[383918572,1757172661713,-480.0,0.00013972,2]
[383918574,1757172661723,-611.09,0.00013972,2]
[383918576,1757172661733,-480.0,0.00013972,2]
[383918578,1757172661742,-480.0,0.00013972,2]
[383918580,1757172661751,-10740.38,0.00013972,2]
[383918581,1757172661760,-480.0,0.00013972,2]
[383918583,1757172661769,-1127.47,0.00013972,2]
[383918585,1757172661779,-480.0,0.00013972,2]
[383918587,1757172661788,-480.0,0.00013972,2]
[383918589,1757172661797,-828.3,0.00013972,2]
[383918591,1757172661807,-480.0,0.00013972,2]
[383918593,1757172661817,-480.0,0.00013972,2]
[383918595,1757172661826,-4315.93,0.00013972,2]
[383918597,1757172661834,-480.0,0.00013972,2]
[383918599,1757172661843,-480.0,0.00013972,2]
[383918601,1757172661851,-480.0,0.00013972,2]
[383918603,1757172661861,-480.0,0.00013972,2]
[383918605,1757172661870,-796.06,0.00013972,2]
[383918607,1757172661879,-482.67795849,0.00013972,2]
[383918609,1757172661889,-480.0,0.00013972,2]
[383918611,1757172661898,-480.0,0.00013972,2]
[383918613,1757172661907,-483.46564549,0.00013972,2]
[383918615,1757172661918,-480.0,0.00013972,2]
[383918617,1757172661928,-480.0,0.00013972,2]
[383918619,1757172661938,-1126.95,0.00013972,2]
[383918621,1757172661947,-2952.49,0.00013972,2]
[383918623,1757172661957,-480.0,0.00013972,2]
[383918625,1757172661966,-1003.96,0.00013972,2]
[383918627,1757172661975,-2552.09,0.00013972,2]
[383918629,1757172661984,-480.0,0.00013972,2]
[383918631,1757172661994,-898.46,0.00013972,2]
[383918633,1757172662003,-1940.47,0.00013972,2]
[383918634,1757172662012,-1223.53,0.00013972,2]
[383918636,1757172662022,-480.0,0.00013972,2]
[383918638,1757172662031,-1441.67,0.00013972,2]
[383918640,1757172662040,-480.0,0.00013972,2]
[383918642,1757172662050,-480.0,0.00013972,2]
[383918644,1757172662059,-723.18,0.00013972,2]
[383918646,1757172662070,-480.0,0.00013972,2]
[383918648,1757172662079,-494.58039667,0.00013972,2]
[383918650,1757172662089,-480.0,0.00013972,2]
[383918652,1757172662098,-480.0,0.00013972,2]
[383918654,1757172662110,-486.14518979,0.00013972,2]
[383918656,1757172662119,-480.0,0.00013972,2]
[383918658,1757172662130,-480.0,0.00013972,2]
[383918660,1757172662139,-480.0,0.00013972,2]
[383918662,1757172662149,-281.76286044,0.00013972,2]
[383918664,1757172662159,-480.0,0.00013972,2]
[383918666,1757172662168,-480.0,0.00013972,2]
[383918668,1757172662177,-480.0,0.00013972,2]
[383918670,1757172662186,-480.0,0.00013972,2]
[383918672,1757172662195,-466.58937359,0.00013972,2]
[383918674,1757172662204,-482.1729571,0.00013972,2]
[383918676,1757172662213,-480.0,0.00013972,2]
[383918678,1757172662222,-351.7594798,0.00013972,2]
[383918680,1757172662231,-480.0,0.00013972,2]
[383918682,1757172662240,-480.0,0.00013972,2]
[383918684,1757172662253,-480.0,0.00013972,2]
[383918686,1757172662262,-584.16381811,0.00013972,2]
[383918688,1757172662271,-481.66436693,0.00013972,2]
[383918689,1757172662280,-480.0,0.00013972,2]
[383918691,1757172662290,-480.0,0.00013972,2]
[383918693,1757172662301,-482.6484155,0.00013972,2]
[383918695,1757172662312,-480.0,0.00013972,2]
[383918697,1757172662322,-288.45391223,0.00013972,2]
[383918699,1757172662332,-480.0,0.00013972,2]
[383918701,1757172662342,-480.0,0.00013972,2]
[383918703,1757172662352,-480.0,0.00013972,2]
[383918705,1757172662362,-480.0,0.00013972,2]
[383918707,1757172662371,-1049.56,0.00013972,2]
[383918709,1757172662381,-480.0,0.00013972,2]
[383918710,1757172662391,-480.0,0.00013972,2]
[383918711,1757172662400,-5198.43,0.00013972,2]
[383918712,1757172662410,-480.0,0.00013972,2]
[383918713,1757172662421,-481.80289398,0.00013972,2]
[383918714,1757172662431,-480.0,0.00013972,2]
[383918715,1757172662441,-2689.72,0.00013972,2]
[383918716,1757172662451,-480.0,0.00013972,2]
[383918717,1757172662461,-480.0,0.00013972,2]
[383918718,1757172662471,-705.85,0.00013972,2]
[383918719,1757172662480,-480.0,0.00013972,2]
[383918720,1757172662490,-442.83126442,0.00013972,2]
[383918721,1757172662499,-480.0,0.00013972,2]
[383918722,1757172662508,-480.0,0.00013972,2]
[383918723,1757172662518,-480.0,0.00013972,2]
[383918724,1757172662528,-480.0,0.00013972,2]
[383918725,1757172662538,-480.32440113,0.00013972,2]
[383918726,1757172662547,-153.83075818,0.00013972,2]
[383918727,1757172662557,-480.0,0.00013972,2]
[383918728,1757172662566,-2339.25,0.00013972,2]
[383918729,1757172662576,-480.0,0.00013972,2]
[383918730,1757172662586,-481.47,0.00013972,2]
[383918731,1757172662596,-480.0,0.00013972,2]
[383918732,1757172662606,-650.02,0.00013972,2]
[383918733,1757172662615,-480.0,0.00013972,2]
[383918734,1757172662624,-204.74941233,0.00013972,2]
[383918735,1757172662633,-482.35939428,0.00013972,2]
[383918737,1757172662643,-480.0,0.00013972,2]
[383918738,1757172662652,-610.32,0.00013972,2]
[383918739,1757172662661,-480.0,0.00013972,2]
[383918741,1757172662670,-2139.18,0.00013972,2]
[383918743,1757172662680,-619.65,0.00013972,2]
[383918745,1757172662689,-480.0,0.00013972,2]
[383918747,1757172662698,-1066.84,0.00013972,2]
[383918749,1757172662708,-480.0,0.00013972,2]
[383918751,1757172662717,-480.0,0.00013972,2]
[383918753,1757172662727,-480.0,0.00013972,2]
[383918755,1757172662737,-480.0,0.00013972,2]
[383918757,1757172662746,-1704.71,0.00013972,2]
[383918759,1757172662756,-779.99,0.00013972,2]
[383918761,1757172662765,-480.0,0.00013972,2]
[383918763,1757172662774,-480.0,0.00013972,2]
[383918765,1757172662783,-921.42,0.00013972,2]
[383918767,1757172662793,-480.0,0.00013972,2]
[383918769,1757172662802,-671.1,0.00013972,2]
[383918771,1757172662812,-1105.09,0.00013972,2]
[383918773,1757172662821,-480.0,0.00013972,2]
[383918775,1757172662831,-581.49,0.00013972,2]
[383918777,1757172662840,-480.0,0.00013972,2]
[383918779,1757172662849,-480.0,0.00013972,2]
[383918781,1757172662859,-480.0,0.00013972,2]
[383918783,1757172662869,-477.96302787,0.00013972,2]
[383918785,1757172662879,-480.0,0.00013972,2]
[383918787,1757172662888,-480.0,0.00013972,2]
[383918789,1757172662899,-480.0,0.00013972,2]
[383918791,1757172662909,-480.0,0.00013972,2]
[383918793,1757172662920,-480.0,0.00013972,2]
[383918795,1757172662932,-484.84166532,0.00013972,2]
[383918797,1757172662942,-2522.75,0.00013972,2]
[383918799,1757172662951,-326.87343879,0.00013972,2]
[383918802,1757172662969,-827.48656121,0.00013972,2]
[383918804,1757172662978,-480.0,0.00013972,2]
[383918806,1757172662988,-2769.88,0.00013972,2]
[383918808,1757172662997,-485.41740983,0.00013972,2]
[383918810,1757172663006,-480.0,0.00013972,2]
[383918812,1757172663015,-309.44943801,0.00013972,2]
[383925585,1757172863119,391.0,0.00027,120]
[383925586,1757172887195,300.0,0.00027,120]
[383925587,1757173029609,666.0,0.00012373,2]
[383925592,1757173160212,468.9599547,0.0001232,2]
[383925593,1757173249891,1500.25445644,0.0001,2]
[383925594,1757173255356,2100.0,0.00013114,2]
[383925595,1757173264216,156.5413715,0.00013114,2]
[383925596,1757173325904,1525.98850232,0.00013155,2]
[383925599,1757173374103,250.0,0.00013107,2]
[383925605,1757173444047,10000.0,0.00012339,2]
[383925610,1757173626675,2223.2485,0.00013232,5]
[383925660,1757173831843,-429.14,0.00013245,2]
[383925661,1757173831877,-770.86,0.00013245,2]
[383925662,1757173831887,-998.40255591,0.00013246,2]
[383925663,1757173831897,-886.0,0.00013246,2]
[383925664,1757173831907,-300.0,0.00013246,2]
[383925665,1757173831919,-300.0,0.00013246,2]
[383925666,1757173831929,-300.0,0.00013246,2]
[383925667,1757173831939,-47482.8051571,0.00013247,2]
[383925668,1757173831950,-2105.41764886,0.0001333,2]
[383925669,1757173831960,-500.0,0.00013335,2]
[383925670,1757173831970,-500.0,0.00013335,2]
[383925671,1757173831980,-500.0,0.00013335,2]
[383925672,1757173831989,-500.0,0.00013335,2]
[383925674,1757173831999,-500.0,0.00013335,2]
[383925675,1757173832009,-500.0,0.00013335,2]
[383925678,1757173832018,-500.0,0.00013335,2]
[383925680,1757173832028,-500.0,0.00013335,2]
[383925682,1757173832037,-500.0,0.00013335,2]
[383925684,1757173832047,-500.0,0.00013335,2]
[383925686,1757173832056,-651.20992156,0.00013335,2]
[383925688,1757173832065,-500.0,0.00013335,2]
[383925690,1757173832075,-500.0,0.00013335,2]
[383925692,1757173832085,-500.0,0.00013335,2]
[383925694,1757173832095,-500.0,0.00013335,2]
[383925696,1757173832104,-500.0,0.00013335,2]
[383925698,1757173832113,-500.0,0.00013335,2]
[383925700,1757173832123,-500.0,0.00013335,2]
[383925702,1757173832132,-500.0,0.00013335,2]
[383925704,1757173832141,-228.82871774,0.00013335,2]
[383925706,1757173832150,-500.0,0.00013335,2]
[383925708,1757173832160,-500.0,0.00013335,2]
[383925710,1757173832170,-500.0,0.00013335,2]
[383925712,1757173832179,-500.0,0.00013335,2]
[383925714,1757173832190,-345.06882725,0.00013335,2]
[383925716,1757173832199,-500.0,0.00013335,2]
[383925718,1757173832208,-500.0,0.00013335,2]
[383925720,1757173832218,-500.0,0.00013335,2]
[383925722,1757173832227,-500.0,0.00013335,2]
[383925723,1757173832236,-500.0,0.00013335,2]
[383925725,1757173832247,-368.32595808,0.00013335,2]
[383925727,1757173832257,-339.90225026,0.00013335,2]
[383925729,1757173832266,-500.0,0.00013335,2]
[383925731,1757173832275,-500.0,0.00013335,2]
[383925733,1757173832284,-500.0,0.00013335,2]
[383925735,1757173832300,-500.0,0.00013335,2]
[383925737,1757173832310,-500.0,0.00013335,2]
[383925739,1757173832319,-500.0,0.00013335,2]
[383925741,1757173832328,-500.0,0.00013335,2]
[383925743,1757173832338,-500.0,0.00013335,2]
[383925745,1757173832348,-500.0,0.00013335,2]
[383925747,1757173832357,-500.0,0.00013335,2]
[383925749,1757173832367,-500.0,0.00013335,2]
[383925751,1757173832376,-500.0,0.00013335,2]
[383925753,1757173832385,-445.95764961,0.00013335,2]
[383925755,1757173832395,-500.0,0.00013335,2]
[383925757,1757173832404,-500.0,0.00013335,2]
[383925759,1757173832414,-500.0,0.00013335,2]
[383925760,1757173832423,-500.0,0.00013335,2]
[383925762,1757173832433,-500.0,0.00013335,2]
[383925764,1757173832442,-500.0,0.00013335,2]
[383925766,1757173832451,-500.0,0.00013335,2]
[383925768,1757173832460,-500.0,0.00013335,2]
[383925770,1757173832469,-500.0,0.00013335,2]
[383925772,1757173832479,-500.0,0.00013335,2]
[383925774,1757173832489,-500.0,0.00013335,2]
[383925776,1757173832498,-500.0,0.00013335,2]
[383925778,1757173832507,-500.0,0.00013335,2]
[383925780,1757173832517,-500.0,0.00013335,2]
[383925782,1757173832526,-500.0,0.00013335,2]
[383925784,1757173832535,-500.0,0.00013335,2]
[383925786,1757173832545,-500.0,0.00013335,2]
[383925788,1757173832554,-500.0,0.00013335,2]
[383925790,1757173832563,-500.0,0.00013335,2]
[383925792,1757173832572,-500.0,0.00013335,2]
[383925794,1757173832582,-500.0,0.00013335,2]
[383925796,1757173832590,-242.06924373,0.00013335,2]
[383925798,1757173832600,-500.0,0.00013335,2]
[383925800,1757173832609,-500.0,0.00013335,2]
[383925802,1757173832618,-500.0,0.00013335,2]
[383925804,1757173832628,-500.0,0.00013335,2]
[383925806,1757173832637,-500.0,0.00013335,2]
[383925808,1757173832647,-395.72467428,0.00013335,2]
[383925810,1757173832656,-500.0,0.00013335,2]
[383925812,1757173832666,-500.0,0.00013335,2]
[383925813,1757173832675,-500.0,0.00013335,2]
[383925814,1757173832685,-500.0,0.00013335,2]
[383925816,1757173832694,-500.0,0.00013335,2]
[383925817,1757173832705,-500.0,0.00013335,2]
[383925819,1757173832715,-500.0,0.00013335,2]
[383925821,1757173832725,-500.0,0.00013335,2]
[383925822,1757173832735,-500.0,0.00013335,2]
[383925823,1757173832744,-500.0,0.00013335,2]
[383925825,1757173832753,-500.0,0.00013335,2]
[383925827,1757173832762,-500.0,0.00013335,2]
[383925829,1757173832772,-500.0,0.00013335,2]
[383925831,1757173832781,-500.0,0.00013335,2]
[383925833,1757173832791,-500.0,0.00013335,2]
[383925834,1757173832800,-500.0,0.00013335,2]
[383925835,1757173832809,-500.0,0.00013335,2]
[383925836,1757173832819,-500.0,0.00013335,2]
[383925837,1757173832828,-500.0,0.00013335,2]
[383925838,1757173832838,-500.0,0.00013335,2]
[383925839,1757173832847,-295.41672208,0.00013335,2]
[383925840,1757173832856,-500.0,0.00013335,2]
[383925841,1757173832866,-500.0,0.00013335,2]
[383925843,1757173832879,-602.64831122,0.00013335,2]
[383925845,1757173832888,-50000.0,0.00013335,2]
[383925847,1757173832897,-500.0,0.00013344,2]
[383925849,1757173832907,-242.45495503,0.00013385,2]
[383925850,1757173832916,-411.735,0.00013396,2]
[383925852,1757173832926,-300.0,0.00013511,2]
[383925853,1757173832936,-300.0,0.00013511,2]
[383925854,1757173832945,-300.0,0.00013511,2]
[383925856,1757173832955,-300.0,0.00013511,2]
[383925857,1757173832965,-300.0,0.00013511,2]
[383925858,1757173832975,-300.0,0.00013511,2]
[383925859,1757173832984,-300.0,0.00013511,2]
[383925860,1757173832993,-300.0,0.00013511,2]
[383925861,1757173833003,-300.0,0.00013511,2]
[383925862,1757173833012,-300.0,0.00013511,2]
[383925863,1757173833022,-300.0,0.00013511,2]
[383925864,1757173833031,-300.0,0.00013511,2]
[383925865,1757173833040,-300.0,0.00013511,2]
[383925866,1757173833050,-300.0,0.00013511,2]
[383925867,1757173833061,-300.0,0.00013511,2]
[383925868,1757173833071,-975.0,0.00013579,2]
[383925869,1757173833082,-409.0,0.00013579,2]
[383925870,1757173833091,-2154.0,0.00013579,2]
[383925871,1757173833100,-634.0,0.00013579,2]
[383925872,1757173833110,-986.41216187,0.00013597,2]
[383925873,1757173833120,-6251.03738341,0.00013598,2]
[383925874,1757173833129,-1000.0,0.00013598,2]
[383925875,1757173833139,-600.0,0.0001361,2]
[383925876,1757173833148,-160.0,0.00013612,2]
[383925877,1757173833157,-160.0,0.00013612,2]
[383925878,1757173833167,-530.56961759,0.00013612,2]
[383925879,1757173833177,-160.0,0.00013612,2]
[383925880,1757173833186,-846.58554688,0.00013612,2]
[383925881,1757173833196,-160.0,0.00013612,2]
[383925882,1757173833206,-160.0,0.00013612,2]
[383925883,1757173833216,-232.99021696,0.00013612,2]
[383925884,1757173833225,-203.21852024,0.00013612,2]
[383925885,1757173833234,-217.58669629,0.00013612,2]
[383925886,1757173833244,-417.15472785,0.00013612,2]
[383925887,1757173833253,-500.0,0.00013618,2]
[383925888,1757173833262,-500.0,0.00013673,2]
[383925889,1757173833271,-500.0,0.00013673,2]
[383925890,1757173833280,-500.0,0.00013673,2]
[383925891,1757173833289,-500.81739419,0.00013673,2]
[383925892,1757173833298,-501.06957447,0.00013673,2]
[383925893,1757173833307,-500.0,0.00013673,2]
[383925894,1757173833489,-488.11582637,0.00013673,2]
[383925895,1757173833500,-168.3888056,0.0001369,2]
[383925896,1757173833510,-480.0,0.00013698,2]
[383925897,1757173833519,-480.0,0.00013698,2]
[383925898,1757173833529,-480.0,0.00013698,2]
[383925899,1757173833538,-480.0,0.00013698,2]
[383925900,1757173833548,-480.0,0.00013698,2]
[383925901,1757173833557,-480.0,0.00013698,2]
[383925902,1757173833567,-480.0,0.00013698,2]
[383925903,1757173833576,-480.0,0.00013698,2]
[383925904,1757173833585,-480.0,0.00013698,2]
[383925905,1757173833595,-335.82196643,0.00013698,2]
[383925906,1757173833605,-480.0,0.00013698,2]
[383925907,1757173833614,-480.0,0.00013698,2]
[383925908,1757173833624,-173.36256661,0.00013698,2]
[383925909,1757173833634,-480.0,0.00013698,2]
[383925910,1757173833644,-480.0,0.00013698,2]
[383925911,1757173833653,-490.82,0.00013698,2]
[383925912,1757173833663,-480.0,0.00013698,2]
[383925913,1757173833672,-480.0,0.00013698,2]
[383925914,1757173833682,-480.0,0.00013698,2]
[383925915,1757173833692,-480.0,0.00013698,2]
[383925916,1757173833701,-480.0,0.00013698,2]
[383925917,1757173833711,-480.0,0.00013698,2]
[383925918,1757173833720,-480.0,0.00013698,2]
[383925919,1757173833730,-480.0,0.00013698,2]
[383925920,1757173833739,-495.73,0.00013698,2]
[383925921,1757173833749,-586.81,0.00013698,2]
[383925922,1757173833759,-480.0,0.00013698,2]
[383925923,1757173833768,-480.0,0.00013698,2]
[383925924,1757173833778,-480.0,0.00013698,2]
[383925925,1757173833787,-480.0,0.00013698,2]
[383925926,1757173833797,-480.0,0.00013698,2]
[383925927,1757173833807,-480.0,0.00013698,2]
[383925928,1757173833816,-480.0,0.00013698,2]
[383925929,1757173833826,-480.0,0.00013698,2]
[383925930,1757173833835,-200.68545897,0.00013698,2]
[383925931,1757173833891,-279.31454103,0.00013698,2]
[383925932,1757173833901,-480.0,0.00013698,2]
[383925933,1757173833911,-49.56941493,0.00013698,2]
[383925948,1757173838102,-430.43058507,0.00013698,2]
[383925950,1757173838113,-480.0,0.00013698,2]
[383925952,1757173838122,-480.0,0.00013698,2]